fUST/lending_fUST_20241213
["ID","MTS","AMOUNT","RATE_DAILY","PERIOD"]
[345163292,1734073856730,-500.0,0.00027671,7]
[345163294,1734073856740,-500.0,0.00027671,7]
[345163296,1734073856750,-1408.4,0.00027671,7]
[345163298,1734073856760,-1493.83,0.00027671,7]
[345163300,1734073856770,-612.01,0.00027671,7]
[345163301,1734073856780,-710.98,0.00027671,7]
[345163303,1734073856790,-1455.91,0.00027671,7]
[345163306,1734073856800,-500.0,0.00027671,7]
[345163307,1734073856810,-500.0,0.00027671,7]
[345163310,1734073856820,-500.0,0.00027671,7]
[345163311,1734073856830,-500.0,0.00027671,7]
[345163313,1734073856839,-500.0,0.00027671,7]
[345163316,1734073856849,-500.0,0.00027671,7]
[345163317,1734073856859,-1031.95,0.00027671,7]
[345163319,1734073856876,-512.24555552,0.00027671,7]
[345163321,1734073856886,-500.0,0.00027671,7]
[345163323,1734073856899,-500.0,0.00027671,7]
[345163325,1734073856909,-500.0,0.00027671,7]
[345163327,1734073856918,-500.0,0.00027671,7]
[345163329,1734073856927,-500.0,0.00027671,7]
[345163331,1734073856936,-930.78,0.00027671,7]
[345163333,1734073856945,-500.0,0.00027671,7]
[345163335,1734073856954,-500.0,0.00027671,7]
[345163337,1734073856963,-500.0,0.00027671,7]
[345163339,1734073856973,-500.0,0.00027671,7]
[345163341,1734073856982,-500.0,0.00027671,7]
[345163343,1734073856991,-500.0,0.00027671,7]
[345163345,1734073857000,-750.66,0.00027671,7]
[345163347,1734073857009,-500.0,0.00027671,7]
[345163349,1734073857018,-500.0,0.00027671,7]
[345163351,1734073857027,-742.52,0.00027671,7]
[345163353,1734073857036,-581.53,0.00027671,7]
[345163355,1734073857046,-500.0,0.00027671,7]
[345163357,1734073857055,-500.0,0.00027671,7]
[345163359,1734073857065,-606.73679373,0.00027671,7]
[345163361,1734073857076,-500.0,0.00027671,7]
[345163363,1734073857085,-500.0,0.00027671,7]
[345163365,1734073857094,-685.0,0.00027671,7]
[345163367,1734073857103,-561.92,0.00027671,7]
[345163369,1734073857118,-500.69,0.00027671,7]
[345163371,1734073857128,-611.51,0.00027671,7]
[345163373,1734073857138,-488.89380885,0.00027671,7]
[345163375,1734073857148,-560.45,0.00027671,7]
[345163377,1734073857158,-500.0,0.00027671,7]
[345163379,1734073857167,-500.0,0.00027671,7]
[345163381,1734073857176,-500.0,0.00027671,7]
[345163383,1734073857185,-500.0,0.00027671,7]
[345163385,1734073857195,-500.0,0.00027671,7]
[345163387,1734073857204,-500.0,0.00027671,7]
[345163389,1734073857214,-586.35,0.00027671,7]
[345163391,1734073857223,-671.76,0.00027671,7]
[345163393,1734073857233,-500.0,0.00027671,7]
[345163395,1734073857243,-821.87,0.00027671,7]
[345163397,1734073857253,-500.0,0.00027671,7]
[345163399,1734073857262,-763.18,0.00027671,7]
[345163401,1734073857271,-500.0,0.00027671,7]
[345163403,1734073857281,-500.0,0.00027671,7]
[345163405,1734073857291,-500.0,0.00027671,7]
[345163407,1734073857300,-500.0,0.00027671,7]
[345163409,1734073857309,-500.0,0.00027671,7]
[345163411,1734073857318,-500.0,0.00027671,7]
[345163413,1734073857328,-500.0,0.00027671,7]
[345163415,1734073857337,-500.0,0.00027671,7]
[345163417,1734073857347,-500.0,0.00027671,7]
[345163419,1734073857356,-1939.32,0.00027671,7]
[345163421,1734073857369,-500.0,0.00027671,7]
[345163423,1734073857378,-500.0,0.00027671,7]
[345163425,1734073857388,-500.0,0.00027671,7]
[345163427,1734073857398,-791.43,0.00027671,7]
[345163429,1734073857408,-489.05101957,0.00027671,7]
[345163431,1734073857418,-500.0,0.00027671,7]
[345163433,1734073857427,-506.77648983,0.00027671,7]
[345163435,1734073857437,-854.56,0.00027671,7]
[345163437,1734073857449,-500.0,0.00027671,7]
[345163439,1734073857459,-613.3,0.00027671,7]
[345163441,1734073857468,-500.0,0.00027671,7]
[345163443,1734073857478,-500.0,0.00027671,7]
[345163445,1734073857487,-500.0,0.00027671,7]
[345163447,1734073857496,-500.0,0.00027671,7]
[345163449,1734073857506,-500.0,0.00027671,7]
[345163451,1734073857515,-781.05,0.00027671,7]
[345163453,1734073857523,-500.0,0.00027671,7]
[345163455,1734073857533,-509.1414311,0.00027671,7]
[345163457,1734073857543,-500.0,0.00027671,7]
[345163459,1734073857551,-500.0,0.00027671,7]
[345163461,1734073857561,-500.0,0.00027671,7]
[345163463,1734073857570,-500.0,0.00027671,7]
[345163465,1734073857579,-500.0,0.00027671,7]
[345163467,1734073857588,-486.57268298,0.00027671,7]
[345163469,1734073857598,-500.0,0.00027671,7]
[345163471,1734073857608,-500.0,0.00027671,7]
[345163473,1734073857622,-1549.05,0.00027671,7]
[345163475,1734073857631,-500.0,0.00027671,7]
[345163477,1734073857640,-500.0,0.00027671,7]
[345163478,1734073857649,-500.0,0.00027671,7]
[345163480,1734073857659,-450.45761488,0.00027671,7]
[345163483,1734073857668,-500.0,0.00027671,7]
[345163484,1734073857678,-1117.3,0.00027671,7]
[345163485,1734073857687,-500.0,0.00027671,7]
[345163486,1734073857696,-500.0,0.00027671,7]
[345163487,1734073857706,-1000.0,0.00027671,2]
[345163488,1734073857715,-500.0,0.00027671,7]
[345163489,1734073857724,-500.0,0.00027671,7]
[345163490,1734073857734,-500.0,0.00027671,7]
[345163491,1734073857743,-918.3,0.00027671,7]
[345163492,1734073857752,-1626.18,0.00027671,7]
[345163493,1734073857762,-500.0,0.00027671,7]
[345163494,1734073857771,-500.0,0.00027671,7]
[345163495,1734073857780,-500.0,0.00027671,7]
[345163496,1734073857789,-500.0,0.00027671,7]
[345163497,1734073857799,-500.0,0.00027671,7]
[345163498,1734073857808,-500.0,0.00027671,7]
[345163499,1734073857817,-151.54154564,0.00027671,7]
[345163500,1734073857827,-500.0,0.00027671,7]
[345163501,1734073857836,-500.0,0.00027671,7]
[345163502,1734073857846,-500.0,0.00027671,7]
[345163503,1734073857855,-500.0,0.00027671,7]
[345163504,1734073857866,-500.0,0.00027671,7]
[345163505,1734073857875,-500.0,0.00027671,7]
[345163506,1734073857885,-500.0,0.00027671,7]
[345163507,1734073857894,-661.48,0.00027671,7]
[345163508,1734073857903,-168.0,0.00027671,7]
[345163509,1734073857913,-2467.25,0.00027671,7]
[345163510,1734073857923,-854.23,0.00027671,7]
[345163511,1734073857932,-576.59,0.00027671,7]
[345163512,1734073857942,-500.0,0.00027671,7]
[345163513,1734073857951,-596.77,0.00027671,7]
[345163514,1734073857960,-500.0,0.00027671,7]
[345163516,1734073857970,-200.0,0.00027671,7]
[345163518,1734073857979,-500.0,0.00027671,7]
[345163520,1734073857988,-500.0,0.00027671,7]
[345163522,1734073857997,-500.0,0.00027671,7]
[345163524,1734073858007,-377.89865877,0.00027671,7]
[345163526,1734073858016,-500.0,0.00027671,7]
[345163528,1734073858025,-622.39911855,0.00027671,7]
[345163530,1734073858034,-500.0,0.00027671,7]
[345163532,1734073858043,-500.0,0.00027671,7]
[345163534,1734073858052,-504.74,0.00027671,7]
[345163536,1734073858061,-2075.55,0.00027671,7]
[345163538,1734073858070,-594.43822785,0.00027671,7]
[345163540,1734073858079,-2144.24,0.00027671,7]
[345163542,1734073858088,-500.0,0.00027671,7]
[345163543,1734073858098,-500.0,0.00027671,7]
[345163545,1734073858107,-500.0,0.00027671,7]
[345163547,1734073858118,-598.18,0.00027671,7]
[345163549,1734073858127,-504.29,0.00027671,7]
[345163551,1734073858136,-500.0,0.00027671,7]
[345163553,1734073858145,-695.31,0.00027671,7]
[345163555,1734073858154,-500.0,0.00027671,7]
[345163557,1734073858164,-500.0,0.00027671,7]
[345163559,1734073858173,-551.25,0.00027671,7]
[345163561,1734073858182,-1042.61,0.00027671,7]
[345163563,1734073858192,-500.0,0.00027671,7]
[345163565,1734073858201,-500.0,0.00027671,7]
[345163568,1734073858210,-500.0,0.00027671,7]
[345163570,1734073858219,-500.0,0.00027671,7]
[345163571,1734073858228,-500.0,0.00027671,7]
[345163573,1734073858238,-500.0,0.00027671,7]
[345163575,1734073858247,-503.4763739,0.00027671,7]
[345163577,1734073858256,-500.0,0.00027671,7]
[345163579,1734073858265,-500.0,0.00027671,7]
[345163581,1734073858274,-500.0,0.00027671,7]
[345163583,1734073858284,-500.0,0.00027671,7]
[345163585,1734073858293,-423.65913742,0.00027671,7]
[345163587,1734073858303,-1132.49,0.00027671,7]
[345163589,1734073858312,-500.0,0.00027671,7]
[345163591,1734073858321,-500.0,0.00027671,7]
[345163593,1734073858331,-500.0,0.00027671,7]
[345163595,1734073858340,-500.0,0.00027671,7]
[345163597,1734073858348,-554.26,0.00027671,7]
[345163599,1734073858358,-848.29,0.00027671,7]
[345163601,1734073858369,-500.0,0.00027671,7]
[345163603,1734073858378,-742.65,0.00027671,7]
[345163605,1734073858387,-505.60665619,0.00027671,7]
[345163607,1734073858396,-500.0,0.00027671,7]
[345163609,1734073858406,-793.69,0.00027671,7]
[345163611,1734073858416,-500.0,0.00027671,7]
[345163613,1734073858425,-500.0,0.00027671,7]
[345163615,1734073858435,-500.0,0.00027671,7]
[345163617,1734073858443,-500.0,0.00027671,7]
[345163619,1734073858457,-500.0,0.00027671,7]
[345163621,1734073858466,-500.0,0.00027671,7]
[345163623,1734073858475,-500.0,0.00027671,7]
[345163625,1734073858484,-500.0,0.00027671,7]
[345163627,1734073858493,-660.24,0.00027671,7]
[345163629,1734073858503,-500.0,0.00027671,7]
[345163631,1734073858512,-959.74,0.00027671,7]
[345163633,1734073858521,-500.0,0.00027671,7]
[345163635,1734073858530,-628.73,0.00027671,7]
[345163637,1734073858539,-500.0,0.00027671,7]
[345163639,1734073858549,-500.0,0.00027671,7]
[345163641,1734073858558,-913.29,0.00027671,7]
[345163643,1734073858567,-769.48,0.00027671,7]
[345163645,1734073858576,-500.0,0.00027671,7]
[345163647,1734073858586,-500.0,0.00027671,7]
[345163649,1734073858596,-687.94,0.00027671,7]
[345163651,1734073858605,-500.0,0.00027671,7]
[345163653,1734073858614,-1239.0,0.00027671,7]
[345163655,1734073858625,-500.0,0.00027671,7]
[345163657,1734073858634,-1226.78,0.00027671,7]
[345163659,1734073858643,-500.0,0.00027671,7]
[345163661,1734073858652,-500.0,0.00027671,7]
[345163663,1734073858662,-500.0,0.00027671,7]
[345163665,1734073858671,-555.96,0.00027671,7]
[345163667,1734073858680,-500.0,0.00027671,7]
[345163669,1734073858690,-934.39,0.00027671,7]
[345163671,1734073858699,-500.0,0.00027671,7]
[345163673,1734073858708,-500.0,0.00027671,7]
[345163675,1734073858719,-757.27,0.00027671,7]
[345163677,1734073858728,-1702.35,0.00027671,7]
[345163679,1734073858738,-500.0,0.00027671,7]
[345163681,1734073858747,-500.0,0.00027671,7]
[345163683,1734073858756,-694.34,0.00027671,7]
[345163685,1734073858765,-737.45,0.00027671,7]
[345163687,1734073858774,-851.51,0.00027671,7]
[345163689,1734073858784,-2417.87,0.00027671,7]
[345163691,1734073858793,-544.05811861,0.00027671,7]
[345163693,1734073858803,-991.68,0.00027671,7]
[345163695,1734073858812,-1353.92,0.00027671,7]
[345163697,1734073858821,-516.48,0.00027671,7]
[345163699,1734073858830,-2043.23,0.00027671,7]
[345163701,1734073858841,-601.5008977,0.00027671,7]
[345163703,1734073858850,-500.0,0.00027671,7]
[345163705,1734073858860,-500.0,0.00027671,7]
[345163707,1734073858871,-500.0,0.00027671,7]
[345163709,1734073858880,-872.8,0.00027671,7]
[345163711,1734073858891,-994.67,0.00027671,7]
[345163713,1734073858901,-771.58,0.00027671,7]
[345163715,1734073858911,-1208.81,0.00027671,7]
[345163717,1734073858921,-999.45,0.00027671,7]
[345163719,1734073858931,-1400.1,0.00027671,7]
[345163721,1734073858940,-662.17,0.00027671,7]
[345163723,1734073858950,-500.0,0.00027671,7]
[345163725,1734073858959,-1632.88,0.00027671,7]
[345163727,1734073858969,-500.0,0.00027671,7]
[345163729,1734073858978,-500.0,0.00027671,7]
[345163731,1734073858987,-500.0,0.00027671,7]
[345163733,1734073858997,-3598.79,0.00027671,7]
[345163735,1734073859006,-1161.27,0.00027671,7]
[345163737,1734073859016,-500.0,0.00027671,7]
[345163739,1734073859026,-500.0,0.00027671,7]
[345163741,1734073859035,-500.0,0.00027671,7]
[345163743,1734073859045,-761.46,0.00027671,7]
[345163745,1734073859055,-2849.29,0.00027671,7]
[345163747,1734073859064,-500.0,0.00027671,7]
[345163749,1734073859074,-500.0,0.00027671,7]
[345163751,1734073859083,-500.0,0.00027671,7]
[345163753,1734073859092,-500.0,0.00027671,7]
[345163755,1734073859106,-554.96166007,0.00027671,7]
[345163757,1734073859116,-500.0,0.00027671,7]
[345163759,1734073859126,-1360.35,0.00027671,7]
[345163761,1734073859136,-830.13,0.00027671,7]
[345163763,1734073859145,-500.0,0.00027671,7]
[345163765,1734073859155,-500.0,0.00027671,7]
[345163767,1734073859164,-552.29,0.00027671,7]
[345163769,1734073859174,-1830.05,0.00027671,7]
[345163771,1734073859183,-500.0,0.00027671,7]
[345163773,1734073859193,-500.0,0.00027671,7]
[345163775,1734073859202,-2352.18,0.00027671,7]
[345163777,1734073859212,-665.66,0.00027671,2]
[345163779,1734073859221,-10350.06,0.00027671,7]
[345163796,1734073859371,-500.0,0.00027671,7]
[345163798,1734073859381,-500.0,0.00027671,7]
[345163800,1734073859390,-1088.5,0.00027671,7]
[345163802,1734073859400,-884.8,0.00027671,7]
[345163804,1734073859410,-1721.54,0.00027671,7]
[345163806,1734073859419,-2055.1,0.00027671,7]
[345163808,1734073859428,-500.0,0.00027671,7]
[345163810,1734073859437,-524.23,0.00027671,7]
[345163812,1734073859448,-500.0,0.00027671,7]
[345163814,1734073859458,-500.0,0.00027671,7]
[345163816,1734073859468,-500.0,0.00027671,7]
[345163818,1734073859477,-1393.08,0.00027671,7]
[345163820,1734073859486,-2000.0,0.00027671,7]
[345163822,1734073859497,-759.46,0.00027671,7]
[345163824,1734073859507,-1231.64,0.00027671,7]
[345163826,1734073859516,-500.0,0.00027671,7]
[345163828,1734073859527,-505.43143431,0.00027671,7]
[345163830,1734073859537,-1043.14,0.00027671,7]
[345163832,1734073859546,-500.0,0.00027671,7]
[345163834,1734073859556,-500.0,0.00027671,7]
[345163836,1734073859565,-500.0,0.00027671,7]
[345163838,1734073859574,-500.0,0.00027671,7]
[345163840,1734073859584,-500.0,0.00027671,7]
[345163842,1734073859593,-757.36,0.00027671,7]
[345163844,1734073859602,-597.21,0.00027671,7]
[345163846,1734073859611,-855.14,0.00027671,7]
[345163848,1734073859623,-500.0,0.00027671,7]
[345163850,1734073859633,-774.23,0.00027671,7]
[345163852,1734073859643,-500.0,0.00027671,7]
[345163854,1734073859652,-510.57491923,0.00027671,7]
[345163856,1734073859661,-734.46,0.00027671,7]
[345163858,1734073859671,-520.61680307,0.00027671,7]
[345163860,1734073859680,-544.56,0.00027671,7]
[345163862,1734073859691,-500.0,0.00027671,7]
[345163864,1734073859700,-500.0,0.00027671,7]
[345163866,1734073859710,-500.0,0.00027671,7]
[345163868,1734073859719,-500.0,0.00027671,7]
[345163870,1734073859728,-500.0,0.00027671,7]
[345163872,1734073859737,-14673.87,0.00027671,7]
[345163874,1734073859748,-874.46,0.00027671,7]
[345163876,1734073859757,-571.74,0.00027671,7]
[345163878,1734073859767,-500.0,0.00027671,7]
[345163880,1734073859776,-500.0,0.00027671,7]
[345163882,1734073859785,-500.0,0.00027671,7]
[345163884,1734073859794,-500.0,0.00027671,7]
[345163886,1734073859803,-1325.51,0.00027671,7]
[345163888,1734073859813,-500.0,0.00027671,7]
[345163890,1734073859822,-500.0,0.00027671,7]
[345163892,1734073859832,-500.0,0.00027671,7]
[345163894,1734073859841,-617.0,0.00027671,7]
[345163896,1734073859851,-500.0,0.00027671,7]
[345163898,1734073859861,-500.0,0.00027671,7]
[345163900,1734073859873,-500.0,0.00027671,7]
[345163902,1734073859882,-500.0,0.00027671,7]
[345163904,1734073859892,-500.0,0.00027671,7]
[345163906,1734073859902,-500.0,0.00027671,7]
[345163908,1734073859911,-500.0,0.00027671,7]
[345163910,1734073859921,-500.0,0.00027671,7]
[345163912,1734073859931,-1057.12,0.00027671,7]
[345163914,1734073859940,-500.0,0.00027671,7]
[345163916,1734073859950,-2374.65,0.00027671,7]
[345163917,1734073859959,-500.0,0.00027671,7]
[345163919,1734073859968,-609.04,0.00027671,7]
[345163921,1734073859978,-500.0,0.00027671,7]
[345163924,1734073859988,-500.0,0.00027671,7]
[345163925,1734073859998,-650.06,0.00027671,7]
[345163928,1734073860008,-500.0,0.00027671,7]
[345163930,1734073860018,-500.0,0.00027671,7]
[345163931,1734073860028,-1403.98,0.00027671,7]
[345163934,1734073860039,-505.14400431,0.00027671,7]
[345163935,1734073860048,-500.0,0.00027671,7]
[345163937,1734073860058,-585.25,0.00027671,7]
[345163939,1734073860068,-1011.92,0.00027671,7]
[345163941,1734073860079,-649.55,0.00027671,7]
[345163943,1734073860088,-500.0,0.00027671,7]
[345163945,1734073860098,-500.0,0.00027671,2]
[345163947,1734073860107,-500.0,0.00027671,7]
[345163949,1734073860117,-500.0,0.00027671,7]
[345163951,1734073860130,-500.0,0.00027671,7]
[345163953,1734073860143,-2099.54,0.00027671,7]
[345163955,1734073860154,-500.0,0.00027671,2]
[345163957,1734073860164,-750.37,0.00027671,7]
[345163959,1734073860173,-1649.58,0.00027671,7]
[345163961,1734073860183,-500.0,0.00027671,7]
[345163963,1734073860192,-1113.45,0.00027671,7]
[345163965,1734073860201,-500.0,0.00027671,7]
[345163967,1734073860211,-502.39313392,0.00027671,7]
[345163969,1734073860221,-18649.54,0.00027671,7]
[345163971,1734073860230,-1520.43,0.00027671,7]
[345163973,1734073860241,-503.00198065,0.00027671,7]
[345163975,1734073860251,-500.0,0.00027671,7]
[345163977,1734073860260,-569.82,0.00027671,7]
[345163979,1734073860270,-802.05,0.00027671,7]
[345163981,1734073860279,-609.74301005,0.00027671,7]
[345163983,1734073860288,-500.0,0.00027671,7]
[345163985,1734073860298,-500.0,0.00027671,7]
[345163987,1734073860307,-1754.12,0.00027671,7]
[345163988,1734073860316,-609.40522391,0.00027671,7]
[345163989,1734073860325,-2347.12,0.00027671,7]
[345163990,1734073860335,-500.0,0.00027671,7]
[345163991,1734073860345,-500.0,0.00027671,7]
[345163992,1734073860355,-657.49,0.00027671,7]
[345163993,1734073860364,-500.0,0.00027671,7]
[345163994,1734073860377,-500.0,0.00027671,7]
[345163995,1734073860386,-500.0,0.00027671,7]
[345163996,1734073860395,-500.0,0.00027671,7]
[345163997,1734073860405,-1837.67,0.00027671,7]
[345163998,1734073860415,-500.0,0.00027671,7]
[345163999,1734073860424,-500.0,0.00027671,7]
[345164001,1734073860434,-500.0,0.00027671,7]
[345164003,1734073860443,-1076.97,0.00027671,7]
[345164005,1734073860456,-1669.83,0.00027671,7]
[345164007,1734073860465,-500.0,0.00027671,7]
[345164009,1734073860475,-805.2,0.00027671,7]
[345164011,1734073860484,-500.0,0.00027671,7]
[345164013,1734073860493,-7567.01,0.00027671,7]
[345164015,1734073860503,-500.0,0.00027671,7]
[345164017,1734073860512,-500.0,0.00027671,7]
[345164019,1734073860522,-5241.44,0.00027671,7]
[345164021,1734073860531,-1014.65,0.00027671,7]
[345164023,1734073860540,-637.87,0.00027671,7]
[345164025,1734073860549,-500.0,0.00027671,7]
[345164027,1734073860558,-3845.18,0.00027671,7]
[345164029,1734073860567,-613.66,0.00027671,7]
[345164031,1734073860576,-556.39,0.00027671,7]
[345164033,1734073860585,-500.0,0.00027671,7]
[345164035,1734073860595,-500.0,0.00027671,7]
[345164037,1734073860604,-500.0,0.00027671,7]
[345164039,1734073860614,-500.0,0.00027671,7]
[345164041,1734073860626,-3110.15,0.00027671,7]
[345164043,1734073860635,-500.0,0.00027671,7]
[345164045,1734073860645,-500.0,0.00027671,7]
[345164047,1734073860654,-1541.34,0.00027671,7]
[345164049,1734073860663,-500.0,0.00027671,7]
[345164051,1734073860673,-500.0,0.00027671,7]
[345164053,1734073860682,-500.0,0.00027671,7]
[345164055,1734073860692,-500.0,0.00027671,7]
[345164057,1734073860701,-513.11,0.00027671,7]
[345164059,1734073860711,-500.0,0.00027671,7]
[345164061,1734073860720,-500.0,0.00027671,2]
[345164063,1734073860730,-500.0,0.00027671,7]
[345164065,1734073860739,-500.0,0.00027671,7]
[345164067,1734073860748,-1760.13,0.00027671,7]
[345164069,1734073860758,-412.40049611,0.00027671,7]
[345164071,1734073860767,-2152.36,0.00027671,7]
[345164073,1734073860776,-844.94,0.00027671,7]
[345164075,1734073860785,-500.0,0.00027671,7]
[345164077,1734073860794,-150.0,0.00027671,7]
[345164079,1734073860803,-500.0,0.00027671,7]
[345164081,1734073860813,-500.0,0.00027671,7]
[345164083,1734073860822,-500.0,0.00027671,7]
[345164085,1734073860831,-500.0,0.00027671,7]
[345164087,1734073860840,-500.0,0.00027671,7]
[345164089,1734073860849,-3513.32,0.00027671,7]
[345164091,1734073860859,-1214.56,0.00027671,7]
[345164093,1734073860870,-794.79,0.00027671,7]
[345164095,1734073860879,-500.0,0.00027671,7]
[345164097,1734073860888,-500.0,0.00027671,7]
[345164099,1734073860898,-565.88,0.00027671,7]
[345164101,1734073860907,-777.95,0.00027671,7]
[345164103,1734073860917,-500.0,0.00027671,7]
[345164105,1734073860926,-634.13144294,0.00027671,7]
[345164107,1734073860935,-500.0,0.00027671,7]
[345164109,1734073860944,-500.0,0.00027671,7]
[345164111,1734073860954,-823.48,0.00027671,7]
[345164113,1734073860963,-6954.56,0.00027671,7]
[345164115,1734073860972,-500.0,0.00027671,7]
[345164117,1734073860982,-1447.45,0.00027671,7]
[345164119,1734073860991,-177.768966,0.00027671,2]
[345164121,1734073861000,-177.768966,0.00027671,41]
[345164123,1734073861008,-177.768966,0.00027671,80]
[345164125,1734073861018,-177.768966,0.00027671,119]
[345164127,1734073861027,-375.19637868,0.00027673,5]
[345164129,1734073861037,-500.0,0.00027673,5]
[345164131,1734073861047,-502.50723347,0.00027673,5]
[345164133,1734073861056,-158.9907558,0.00027673,3]
[345164135,1734073861065,-500.59870951,0.00027673,5]
[345164137,1734073861074,-500.53016739,0.00027673,5]
[345164139,1734073861083,-178.84590757,0.00027673,2]
[345164141,1734073861092,-500.0,0.00027673,5]
[345164143,1734073861101,-163.526987,0.00027673,5]
[345164145,1734073861110,-502.14147184,0.00027673,5]
[345164147,1734073861121,-558.37506506,0.00027673,5]
[345164149,1734073861130,-501.25733203,0.00027673,5]
[345164151,1734073861139,-324.11980192,0.00027673,5]
[345164153,1734073861149,-501.54744886,0.00027673,5]
[345164155,1734073861158,-500.0,0.00027698,5]
[345164157,1734073861167,-500.0,0.00027698,5]
[345164159,1734073861177,-500.0,0.00027698,5]
[345164161,1734073861186,-500.0,0.00027698,5]
[345164163,1734073861195,-500.0,0.00027698,5]
[345164165,1734073861204,-500.0,0.00027698,5]
[345164167,1734073861214,-566.00942243,0.00027698,5]
[345164169,1734073861223,-162.4,0.000278,2]
[345164171,1734073861232,-301.0,0.000278,13]
[345164173,1734073861242,-499.999999,0.00027878,2]
[345164175,1734073861252,-300.0,0.000279,2]
[345164177,1734073861261,-257.87160403,0.00027906,2]
[345164179,1734073861271,-320.27645174,0.00027921,2]
[345164181,1734073861280,-271.48241458,0.00027921,5]
[345164183,1734073861289,-506.34063067,0.00027921,5]
[345164185,1734073861299,-503.8925272,0.00027921,5]
[345164187,1734073861308,-1000.0,0.00027921,5]
[345164189,1734073861317,-507.80270568,0.00027921,5]
[345164191,1734073861327,-150.06,0.00027921,2]
[345164194,1734073861336,-254.92501055,0.00027921,2]
[345164196,1734073861346,-150.06,0.00027921,2]
[345164198,1734073861355,-150.62525217,0.00027921,2]
[345164200,1734073861364,-500.0,0.00027921,2]
[345164202,1734073861376,-253.14876421,0.00027921,2]
[345164204,1734073861387,-277.3504465,0.00027921,2]
[345164206,1734073861396,-500.0,0.00027945,2]
[345164208,1734073861406,-500.0,0.00027945,7]
[345164210,1734073861414,-495.0345511,0.00027945,7]
[345164212,1734073861423,-503.80487792,0.00027945,7]
[345164214,1734073861432,-616.04268584,0.00027945,7]
[345164216,1734073861441,-717.54,0.00027945,7]
[345164218,1734073861455,-500.0,0.00027945,7]
[345164220,1734073861464,-500.0,0.00027945,7]
[345164222,1734073861473,-526.38,0.00027945,7]
[345164224,1734073861482,-500.0,0.00027945,7]
[345164226,1734073861493,-500.0,0.00027945,7]
[345164228,1734073861502,-500.0,0.00027945,7]
[345164230,1734073861511,-1060.98,0.00027945,7]
[345164232,1734073861520,-500.0,0.00027945,7]
[345164234,1734073861530,-500.0,0.00027945,7]
[345164236,1734073861540,-500.0,0.00027945,7]
[345164238,1734073861550,-500.0,0.00027945,7]
[345164240,1734073861560,-500.0,0.00027945,7]
[345164242,1734073861570,-500.0,0.00027945,7]
[345164244,1734073861579,-504.17,0.00027945,7]
[345164246,1734073861589,-500.0,0.00027945,7]
[345164248,1734073861599,-506.77,0.00027945,7]
[345164250,1734073861608,-500.0,0.00027945,7]
[345164252,1734073861621,-500.0,0.00027945,7]
[345164254,1734073861631,-500.0,0.00027945,7]
[345164256,1734073861641,-500.0,0.00027945,7]
[345164258,1734073861651,-500.0,0.00027945,7]
[345164260,1734073861660,-500.0,0.00027945,7]